Cogmind - Beta 13 @@@ ROGUE MODE // 2024.04.11 @ 00:15:37 Player: Abkaal Result: Destroyed by S-27 Virus with Autogun Performance ------------- Evolutions (3) 1500 Regions Visited (13) 2600 Robots Destroyed (157) 785 Value Destroyed (6062) 6062 Prototype IDs (46) 920 Alien Tech Used (0) 0 Bonus (1902) 1902 TOTAL SCORE: 13769 Bonus ------- High Alert Combat Kills 376 Follower Combat Kills 226 Entered Garrisons 200 Used RIF Installer 500 Aligned with FarCom 300 Met Data Miner 300 Cogmind --------- Core Integrity 0/700 Matter 280/300 Energy 155/160 System Corruption 0% Temperature Cool (0) Movement Rolling (100) Location -6/Proximity Caves Parts ------- > --- POWER (1) -------- Light Nuclear Core > --- PROPULSION (4) --- Armored Huge Wheel Armored Huge Wheel > --- UTILITY (6) ------ Large Storage Unit Improved Signal Interpreter Improved Terrain Scanner Advanced Terrain Scan Processor Hacking Suite Hacking Suite > --- WEAPON (2) ------- Impact Mace Spear > --- INVENTORY (15) --- VTOL Module Surge Thruster Xenon Bombardment Thruster Xenon Bombardment Thruster Cooled VTOL Module Advanced Terrain Scan Processor Advanced ECM Suite System Restoration Module Heavy EM Shotgun Improved Datajack Molecular Deconstructor Peak State ------------ > --- POWER ------------ Improved Ion Engine > --- PROPULSION ------- Flying Fortress v7 > --- UTILITY ---------- Large Storage Unit Improved Signal Interpreter Improved Terrain Scan Processor Hacking Suite Hacking Suite System Restoration Module > --- WEAPON ----------- Heavy Flail Makeshift Hammer > --- INVENTORY -------- Improved Ion Engine Light Deuterium Engine Light Nuclear Core Improved Treads Advanced Treads Advanced Treads VTOL Module Cesium-ion Thruster Small Storage Unit Improved Terrain Scanner Advanced Terrain Scan Processor Hardened Medium Armor Plating Improved Light Armor Plating Gauss Rifle Great Maul [Rating: 62] Favorites ----------- Power Improved Ion Engine Engine Improved Ion Engine Power Core Light Nuclear Core Propulsion Wheel Treads Light Treads Leg Aluminum Leg Wheel Wheel Hover Unit Gravmag System Flight Unit Flying Fortress v7 Utility Hacking Suite Device Improved Terrain Scanner Storage Large Storage Unit Processor Improved Signal Interpreter Hackware Hacking Suite Protection Improved Light Armor Plating Weapon Spear Energy Gun EM Shotgun Energy Cannon Advanced Beam Cannon Ballistic Gun Assault Rifle Launcher Rocket Launcher Special Weapon Molecular Deconstructor Impact Weapon Makeshift Hammer Piercing Weapon Spear Build | -11 -10 -10 -9 -9 -9 -8 -8 -7 -7 -7 -7 -7 -6 ------- Run | Yrd Mat Min Mat Min Exi Min Mat Fac Gar Fac Low Dat Pro Slots Evolved 6 | . . . 2 . . . 2 2 . . . . . Power . | . . . . . . . . . . . . . . Propulsion 2 | . . . . . . . . 2 . . . . . Utility 4 | . . . 2 . . . 2 . . . . . . Weapon . | . . . . . . . . . . . . . . Parts Attached 150 | 7 6 3 32 17 . . 14 10 18 38 . . 5 Power 14 | 1 . 1 2 1 . . 1 . 3 4 . . 1 Engine 9 | 1 . 1 2 1 . . 1 . 2 1 . . . Core 5 | . . . . . . . . . 1 3 . . 1 Reactor . | . . . . . . . . . . . . . . Propulsion 47 | 2 2 . 13 7 . . 5 1 6 10 . . 1 Treads 18 | 2 . . 5 . . . 5 . 2 4 . . . Leg 8 | . . . 7 . . . . . . 1 . . . Wheel 14 | . 2 . 1 7 . . . . . 3 . . 1 Hover 1 | . . . . . . . . . . 1 . . . Flight 6 | . . . . . . . . 1 4 1 . . . Utility 48 | 1 2 1 5 3 . . 3 7 9 17 . . . Device 16 | . . . 1 . . . . 3 1 11 . . . Storage 7 | 1 . 1 1 . . . . 1 2 1 . . . Processor 7 | . 2 . . 1 . . 1 2 . 1 . . . Hackware 4 | . . . 1 . . . 1 1 . 1 . . . Protection 14 | . . . 2 2 . . 1 . 6 3 . . . Artifact . | . . . . . . . . . . . . . . Weapon 41 | 3 2 1 12 6 . . 5 2 . 7 . . 3 Energy Gun 14 | . 2 . 8 2 . . 1 . . 1 . . . Energy Cannon 3 | . . . 2 1 . . . . . . . . . Ballistic Gun 9 | 3 . 1 2 . . . 3 . . . . . . Ballistic Cannon . | . . . . . . . . . . . . . . Launcher 3 | . . . . 3 . . . . . . . . . Special Weapon 1 | . . . . . . . . . . . . . 1 Impact Weapon 8 | . . . . . . . 1 2 . 4 . . 1 Slashing Weapon . | . . . . . . . . . . . . . . Piercing Weapon 3 | . . . . . . . . . . 2 . . 1 Special Melee Weapon . | . . . . . . . . . . . . . . Unidentified Prototypes 7 | . . . 3 . . . . . . 3 . . 1 Corrupted Parts 2 | . . . . . . . . . 2 . . . . System Corruption 8 | . . . . . . . . . 8 . . . . Parts Lost 46 | . 1 . 11 5 . . 3 . 6 17 . . 3 Power 7 | . . . . 1 . . . . 2 3 . . 1 Propulsion 15 | . . . 4 . . . 1 . 3 5 . . 2 Utility 11 | . . . 3 2 . . . . 1 5 . . . Weapon 13 | . 1 . 4 2 . . 2 . . 4 . . . Highest Loss Streak 5 | . 1 . 4 2 . . 2 . 5 4 . . 1 To Critical Strikes . | . . . . . . . . . . . . . . Average Slot Usage (%) 90 | . 99 100 99 96 100 100 94 76 83 85 92 92 89 Engine 7 | . 14 14 11 10 11 11 9 7 6 3 . . . Core 1 | . . . . . . . . . . 3 7 7 7 Treads 8 | . 25 . 5 . . . 14 . 4 11 7 7 5 Leg 1 | . . . 8 . . . . . . . 7 7 5 Wheel 7 | . 2 28 8 21 22 22 3 . . 5 7 7 7 Flight 1 | . . . . . . . . 7 10 . . . . Device 3 | . . . 2 . . . . 6 . 7 7 7 7 Storage 9 | . 14 14 11 11 11 11 9 7 7 8 7 7 7 Processor 14 | . 13 14 11 18 22 22 26 15 15 8 15 15 15 Hackware 8 | . . . 8 . . . 3 14 15 12 15 15 15 Protection 5 | . . . 11 11 11 11 13 . 6 3 . . . Energy Gun 4 | . . 14 17 9 11 11 3 . . . . . . Ballistic Gun 4 | . 27 14 2 . . . 7 2 . . . . . Launcher 1 | . . . . 10 11 11 1 . . . . . . Impact Weapon 5 | . . . . . . . 2 11 15 8 7 7 6 Piercing Weapon 1 | . . . . . . . . . . 5 7 7 6 Naked Turns . | . . . . . . . . . . . . . . Heaviest Build 65 | 14 15 23 61 60 57 57 65 43 41 44 32 32 32 Greatest Support 64 | 40 40 20 40 26 20 20 45 50 50 64 28 28 56 Greatest Overweight (x) 6 | . . 1 5 5 2 2 6 . 4 1 1 1 1 Average Overweight (x) 1 | . . . 2 2 2 2 1 . . . 1 1 . Largest Inventory Capacity 20 | 8 8 10 20 20 20 20 20 20 15 15 15 15 15 Average Capacity 15 | 7 8 9 19 20 20 20 20 15 14 15 15 15 15 Most Carried 20 | 7 8 10 20 20 20 20 20 20 15 15 15 15 15 Average Carried 15 | 4 7 9 18 19 19 20 19 14 12 13 15 15 14 Final Capacity 20 | 8 8 10 20 20 20 20 20 15 15 15 15 15 15 Final Carried 20 | 7 8 10 20 20 20 20 20 15 11 15 15 15 12 Class Distribution -------------------- 32% | Scavenger-Mutant 26% | Mutant 20% | Hacker-Mutant 11% | Hacker-Scout 5% | Scavenger-Assassin Dominant Class ---------------- Mutant | -10/Materials Scavenger-Mutant | -10/Mines Scavenger-Mutant | -9/Materials Scavenger-Mutant | -9/Mines Scavenger-Mutant | -9/Exiles Scavenger-Mutant | -8/Mines Mutant | -8/Materials Hacker-Scout | -7/Factory Hacker-Mutant | -7/Garrison Hacker-Mutant | -7/Factory Hacker-Mutant | -7/Lower Caves Hacker-Mutant | -7/Data Miner Hacker-Mutant | -6/Proximity Caves Resources | -11 -10 -10 -9 -9 -9 -8 -8 -7 -7 -7 -7 -7 -6 ----------- Run | Yrd Mat Min Mat Min Exi Min Mat Fac Gar Fac Low Dat Pro Matter Collected 2454 | 294 423 32 421 321 . 11 159 140 174 444 10 . 25 Remotely . | . . . . . . . . . . . . . . Salvage Created 5700 | 29 754 43 1762 220 . 55 560 227 339 1656 . . 55 Parts 290 | 5 51 6 112 9 . 4 23 12 13 52 . . 3 Haulers Intercepted 8 | . 2 . 1 . . . 2 1 . 2 . . . Recyclers Shooed 2 | . . . 2 . . . . . . . . . . Parts Field Recycled . | . . . . . . . . . . . . . . Retrieved Matter . | . . . . . . . . . . . . . . Parts Self-Destructed 13 | . . . . . . . . . . . . . 13 Prevented . | . . . . . . . . . . . . . . Kills | -11 -10 -10 -9 -9 -9 -8 -8 -7 -7 -7 -7 -7 -6 ------- Run | Yrd Mat Min Mat Min Exi Min Mat Fac Gar Fac Low Dat Pro Combat Hostiles Destroyed 125 | . 15 3 41 9 . 4 8 6 8 29 . . 2 Melee 30 | . . . . . . . 2 4 2 20 . . 2 Guns 57 | . 15 3 31 2 . 3 3 . . . . . . Cannons 12 | . . . 9 3 . . . . . . . . . AOE 7 | . . . . 4 . 1 2 . . . . . . Classes Destroyed 17 | 1 6 . 4 2 . . 1 2 1 . . . . Worker 3 | . . . 1 . . 1 . . . 1 . . . Builder 5 | . 2 . . . . . . . . 3 . . . Tunneler 2 | 2 . . . . . . . . . . . . . Hauler 8 | . 2 . 1 . . . 2 1 . 2 . . . Recycler 2 | . . . 1 . . . . . . 1 . . . Operator 6 | . 3 . 1 . . . . 1 . 1 . . . Watcher 13 | . 3 . 4 . . . 2 . . 4 . . . Swarmer 25 | . 6 3 8 . . 4 . . . 2 . . 2 Cutter 5 | . . . . . . . . 3 2 . . . . Grunt 61 | . 9 . 26 4 . . 4 . . 18 . . . Protector 1 | . . . 1 . . . . . . . . . . Sentry 14 | . . . 6 . . . 1 . 3 4 . . . Demolisher 1 | . . . . 1 . . . . . . . . . Specialist 2 | . . . . . . . . . 2 . . . . Hunter 5 | . . . . . . . 3 . . 2 . . . Programmer 7 | . . . . . . . . 3 1 3 . . . Assembled 4 | . . . . 4 . . . . . . . . . Best Kill Streak 11 | 1 4 3 11 2 . 5 3 3 2 3 . . 2 Combat Bots Only 9 | . 4 3 9 2 . 4 2 3 2 3 . . 2 Max Kills in Single Turn 2 | 1 1 1 2 2 . 2 1 1 1 1 . . 1 Gunslinging 1 | . . . 1 . . . . . . . . . . Exploded 2 | . . . . 2 . 1 1 . . . . . . Melee 1 | . . . . . . . 1 1 1 1 . . 1 Uniques/NPCs Destroyed . | . . . . . . . . . . . . . . Combat | -11 -10 -10 -9 -9 -9 -8 -8 -7 -7 -7 -7 -7 -6 -------- Run | Yrd Mat Min Mat Min Exi Min Mat Fac Gar Fac Low Dat Pro Hostile Shots Fired 973 | . 69 5 213 33 . 15 44 36 223 309 . . 26 Missed 294 | . 20 2 46 7 . 7 9 21 89 85 . . 8 Damage Taken 8495 | . 526 23 1873 521 . 61 539 248 1607 2812 . . 285 Core 1247 | . 124 . 317 42 . . 64 33 126 494 . . 47 Absorbed by Shields . | . . . . . . . . . . . . . . Regen/Repaired (Parts) 60 | . . . 3 . . . . . . 57 . . . Core Remaining (%) 62 | 100 . 50 . . . 10 88 . . . . . . Volleys Fired 263 | 4 65 4 120 36 . 6 28 . . . . . . Largest 2 | 2 2 2 2 2 . 1 2 . . . . . . Hottest 136 | 40 40 85 136 98 . 45 86 . . . . . . Shots Fired 453 | 8 126 8 224 43 . 6 38 . . . . . . Gun 383 | 8 126 8 180 18 . 5 38 . . . . . . Cannon 65 | . . . 44 21 . . . . . . . . . Launcher 5 | . . . . 4 . 1 . . . . . . . Special . | . . . . . . . . . . . . . . Kinetic 201 | 8 126 4 38 9 . . 16 . . . . . . Thermal 156 | . . 4 120 26 . . 6 . . . . . . Explosive 5 | . . . . 4 . 1 . . . . . . . Electromagnetic 91 | . . . 66 4 . 5 16 . . . . . . Robot Hit Streak 21 | 3 14 6 21 9 . 6 21 . . . . . . Robot Miss Streak 9 | 1 5 3 9 3 . 3 3 . . . . . . Penetration Max . | . . . . . . . . . . . . . . Secondary Targets 5 | . 1 . 4 . . . . . . . . . . Max Gunslinging Chain 1 | . 1 . 1 . . . . . . . . . . Shots Hit Robots 473 | 5 82 5 158 29 . 4 41 17 35 95 . . 2 Core Hits 222 | 2 37 8 98 20 . 5 21 3 4 22 . . 2 Critical Kills 3 | . 1 . . . . . . . . 2 . . . Critical Parts Destroyed 28 | . . . . . . . 2 2 9 15 . . . Critical Strikes 37 | . 1 . 2 . . . 2 2 10 20 . . . Burn 2 | . . . 2 . . . . . . . . . . Destroy 1 | . 1 . . . . . . . . . . . . Smash 32 | . . . . . . . 2 2 10 18 . . . Impale 2 | . . . . . . . . . . 2 . . . Melee Attacks 297 | . . . . . . . 11 37 70 173 . . 6 Impact 244 | . . . . . . . 11 37 70 124 . . 2 Slashing . | . . . . . . . . . . . . . . Piercing 53 | . . . . . . . . . . 49 . . 4 Sneak Attacks 21 | . . . . . . . 3 1 2 15 . . . Combat Hostiles 9 | . . . . . . . 1 . 2 6 . . . Follow-up Attacks 28 | . . . . . . . . 3 8 16 . . 1 Damage Inflicted 13155 | 63 1077 60 2810 700 . 177 1181 927 1485 4610 . . 65 Guns 3935 | 63 1077 60 2034 154 . 41 506 . . . . . . Cannons 1061 | . . . 776 285 . . . . . . . . . Explosions 492 | . . . . 261 . 136 95 . . . . . . Melee 7667 | . . . . . . . 580 927 1485 4610 . . 65 Ramming . | . . . . . . . . . . . . . . Kinetic 1818 | 63 1077 10 389 76 . . 203 . . . . . . Thermal 2259 | . . 50 1701 332 . . 176 . . . . . . Explosive 397 | . . . . 261 . 136 . . . . . . . Electromagnetic 1014 | . . . 720 31 . 41 222 . . . . . . Impact 6732 | . . . . . . . 580 927 1485 3740 . . . Slashing . | . . . . . . . . . . . . . . Piercing 935 | . . . . . . . . . . 870 . . 65 Highest Corruption 8 | . . . . . . . . 1 8 7 . . . Average Corruption 5 | . . . . . . . . 1 5 5 . . . Corruption Purged 12 | . . . . . . . . 1 4 7 . . . Corruption Blocked . | . . . . . . . . . . . . . . Effects 82 | . . . . . . . . 1 5 76 . . . Message Errors 21 | . . . . . . . . 1 1 19 . . . Matter Fused 19 | . . . . . . . . . 2 17 . . . Heat Flow Errors 8 | . . . . . . . . . . 8 . . . Energy Discharges 11 | . . . . . . . . . . 11 . . . Parts Rejected 1 | . . . . . . . . . 1 . . . . Parts Fused 1 | . . . . . . . . . . 1 . . . Data Loss (minor) 15 | . . . . . . . . . 1 14 . . . Data Loss (major) 2 | . . . . . . . . . . 2 . . . Alerts 4 | . . . . . . . . . . 4 . . . Overload Shots . | . . . . . . . . . . . . . . Overflow Damage 2731 | . . . 10 19 . . 147 373 467 1715 . . . Projectiles 29 | . . . 10 19 . . . . . . . . . Explosions . | . . . . . . . . . . . . . . Melee 2702 | . . . . . . . 147 373 467 1715 . . . Knockbacks 23 | . . . . . . . 3 5 5 10 . . . Impact 23 | . . . . . . . 3 5 5 10 . . . Kinetic . | . . . . . . . . . . . . . . Secondary . | . . . . . . . . . . . . . . Self-Inflicted Damage 20 | . . . . . . . 20 . . . . . . Shots 1 | . . . . . . . 1 . . . . . . Rammed . | . . . . . . . . . . . . . . Targets Rammed . | . . . . . . . . . . . . . . Kicked . | . . . . . . . . . . . . . . Crushed . | . . . . . . . . . . . . . . Highest Temperature 444 | . 9 72 444 343 . 12 120 7 13 270 . . . Average Temperature 123 | . 3 31 142 139 . 6 33 7 6 98 . . . Received Heat Transfer 2573 | . 222 . 861 173 . . 135 99 234 849 . . . Effects 12 | . . . 10 2 . . . . . . . . . Shutdowns 1 | . . . 1 . . . . . . . . . . Energy Bleed 2 | . . . 2 . . . . . . . . . . Interference 4 | . . . 4 . . . . . . . . . . Matter Decay 2 | . . . . 2 . . . . . . . . . Short Circuit 3 | . . . 3 . . . . . . . . . . Siege Activations . | . . . . . . . . . . . . . . Robots Corrupted . | . . . . . . . . . . . . . . Combat Hostiles . | . . . . . . . . . . . . . . Parts Fried 56 | . . . 3 . . . 8 11 3 31 . . . Impact Corruptions 79 | . . . . . . . 4 13 13 49 . . . Robots Melted 1 | . . . 1 . . . . . . . . . . Combat Hostiles 1 | . . . 1 . . . . . . . . . . Parts Melted 6 | . . . 6 . . . . . . . . . . Heat Transferred 4048 | . . 60 3035 618 . . 335 . . . . . . Parts Sabotaged . | . . . . . . . . . . . . . . Parts Stolen . | . . . . . . . . . . . . . . Parts Stripped . | . . . . . . . . . . . . . . Power Chain Reactions 2 | . . . . . . . 2 . . . . . . Alert | -11 -10 -10 -9 -9 -9 -8 -8 -7 -7 -7 -7 -7 -6 ------- Run | Yrd Mat Min Mat Min Exi Min Mat Fac Gar Fac Low Dat Pro Peak Influence 858 | 10 326 107 792 446 . 95 255 237 858 549 . . . Initial 450 | . 6 22 41 304 . . 37 . 165 450 . . . Average 227 | 2 112 91 287 194 . 32 72 27 636 348 . . . Maximum Alert Level 3 | . 1 . 3 2 . . 1 1 3 2 . . . Low Security (%) 51 | 100 87 100 44 47 . 100 97 97 10 4 . . . Level 1 31 | . 12 . 32 46 . . 2 2 15 62 . . . Level 2 14 | . . . 20 6 . . . . 14 33 . . . Level 3 3 | . . . 2 . . . . . 59 . . . . Level 4 . | . . . . . . . . . . . . . . Level 5 . | . . . . . . . . . . . . . . High Security . | . . . . . . . . . . . . . . Max Security . | . . . . . . . . . . . . . . Squads Dispatched 46 | . 6 . 8 . . . 3 10 . 19 . . . Investigation 26 | . 4 . 6 . . . 2 4 . 10 . . . Extermination 6 | . . . . . . . . 3 . 3 . . . Reinforcement 9 | . 2 . 1 . . . 1 2 . 3 . . . Assault 2 | . . . 1 . . . . 1 . . . . . Garrison 3 | . . . . . . . . . . 3 . . . Intercept . | . . . . . . . . . . . . . . Searches Triggered . | . . . . . . . . . . . . . . Construction Impeded . | . . . . . . . . . . . . . . Haulers Reinforced 2 | . . . . . . . . 1 . 1 . . . Active Scanning Responses . | . . . . . . . . . . . . . . Cargo Convoy Interrupts 1 | . . . . . . . . 1 . . . . . Stealth | -11 -10 -10 -9 -9 -9 -8 -8 -7 -7 -7 -7 -7 -6 --------- Run | Yrd Mat Min Mat Min Exi Min Mat Fac Gar Fac Low Dat Pro Distress Signals 9 | . 1 . 4 . . . 3 . . 1 . . . Communications Jammed . | . . . . . . . . . . . . . . Distress Signals . | . . . . . . . . . . . . . . Times Spotted 214 | . 27 4 63 19 . 4 15 18 13 40 . . 11 Peak Tracking Total 8 | . 5 3 6 4 . 4 5 8 4 3 . . 5 Tactical Retreats 27 | . 2 . 9 2 . . 3 4 6 1 . . . Traps | -11 -10 -10 -9 -9 -9 -8 -8 -7 -7 -7 -7 -7 -6 ------- Run | Yrd Mat Min Mat Min Exi Min Mat Fac Gar Fac Low Dat Pro Traps Triggered 11 | . 2 . . . . . 1 . 2 6 . . . Indirectly . | . . . . . . . . . . . . . . Trap Hack Attempts . | . . . . . . . . . . . . . . Triggered . | . . . . . . . . . . . . . . Disarmed 17 | . 7 . . . . . 4 . . 6 . . . Reprogrammed 6 | . . . 1 . . . . . . 5 . . . Reused 4 | . . . . . . . . . . 4 . . . Traps Extracted . | . . . . . . . . . . . . . . Installed . | . . . . . . . . . . . . . . Triggered 9 | . . . 1 . . . . 3 1 4 . . . Machines | -11 -10 -10 -9 -9 -9 -8 -8 -7 -7 -7 -7 -7 -6 ---------- Run | Yrd Mat Min Mat Min Exi Min Mat Fac Gar Fac Low Dat Pro Machines Disabled 16 | . . . 2 1 . . 2 . 10 1 . . . Max in Single Turn 1 | . . . 1 1 . . 1 . 1 1 . . . Garrison Access 3 | . . . . . . . . 1 . 2 . . . Garrison Relay 6 | . . . . . . . . . 6 . . . . Machines Repaired . | . . . . . . . . . . . . . . Machines Dismantled . | . . . . . . . . . . . . . . Machines Sabotaged . | . . . . . . . . . . . . . . Overloaded Fab Kills . | . . . . . . . . . . . . . . Hacking | -11 -10 -10 -9 -9 -9 -8 -8 -7 -7 -7 -7 -7 -6 --------- Run | Yrd Mat Min Mat Min Exi Min Mat Fac Gar Fac Low Dat Pro Machines Accessed 55 | . 8 . 10 . 2 . 6 7 . 18 . 4 . Terminals 27 | . 6 . 6 . . . 3 6 . 6 . . . Fabricators 4 | . . . . . . . . . . 4 . . . Repair Stations 4 | . . . 1 . . . 1 . . 2 . . . Recycling Units 5 | . 2 . 2 . . . . . . 1 . . . Scanalyzers 6 | . . . 1 . . . 2 . . 3 . . . Garrison Access 3 | . . . . . . . . 1 . 2 . . . Total Hacks 190 | . 28 . 31 . 2 . 21 20 . 58 . 30 . Successful 122 | . 14 . 15 . 2 . 12 7 . 42 . 30 . Failed 66 | . 13 . 16 . . . 8 13 . 16 . . . Catastrophic 12 | . 4 . 3 . . . . 3 . 2 . . . Database Lockouts 2 | . 1 . . . . . 1 . . . . . . Manual 43 | . 18 . 9 . 1 . 6 4 . 4 . . 1 Terminals 88 | . 24 . 20 . . . 9 19 . 16 . . . Fabricators 9 | . . . . . . . . . . 9 . . . Repair Stations 15 | . . . 4 . . . 1 . . 10 . . . Recycling Units 12 | . 4 . 5 . . . . . . 3 . . . Scanalyzers 31 | . . . 2 . . . 11 . . 18 . . . Garrison Access 3 | . . . . . . . . 1 . 2 . . . Terminal Hacks 69 | . 11 . 6 . 2 . 4 6 . 10 . 30 . Record 13 | . . . . . 1 . . . . 1 . 11 . Part Schematic 14 | . . . . . . . . 1 . 2 . 11 . Robot Schematic 6 | . . . . . . . . 1 . . . 5 . Robot Analysis 7 | . 3 . 1 . . . 1 1 . 1 . . . Prototype ID Bank 6 | . 1 . 1 . . . . . . 1 . 3 . Open DSF 1 | . . . . . . . . 1 . . . . . Branch Access Points 1 | . 1 . . . . . . . . . . . . Terminal Index 1 | . 1 . . . . . . . . . . . . Fabricator Index 1 | . . . . . . . . . . 1 . . . Scanalyzer Index 2 | . . . 1 . . . . . . 1 . . . Alert Level 4 | . . . 2 . . . 1 1 . . . . . Unreport Threat 2 | . 1 . . . . . . . . 1 . . . Locate Traps 1 | . 1 . . . . . . . . . . . . Disarm Traps 4 | . 2 . . . . . 1 . . 1 . . . Reprogram Traps 2 | . . . 1 . . . . . . 1 . . . Registered Components 1 | . 1 . . . . . . . . . . . . Registered Prototypes 1 | . . . . . . . . 1 . . . . . Zone Layout 1 | . . . . . . . 1 . . . . . . Derelict Proto ID Bank 1 | . . . . . 1 . . . . . . . . Fabricator Hacks 6 | . . . . . . . . . . 6 . . . Load Schematic 3 | . . . . . . . . . . 3 . . . Build 3 | . . . . . . . . . . 3 . . . Repair Station Hacks 10 | . . . 3 . . . . . . 7 . . . Scan Component 6 | . . . 2 . . . . . . 4 . . . Repair 4 | . . . 1 . . . . . . 3 . . . Recycling Unit Hacks 6 | . 2 . 3 . . . . . . 1 . . . Report Inventory 5 | . 2 . 2 . . . . . . 1 . . . Retrieve Components 1 | . . . 1 . . . . . . . . . . Scanalyzer 25 | . . . 2 . . . 8 . . 15 . . . Insert Component 13 | . . . 1 . . . 4 . . 8 . . . Analyze 12 | . . . 1 . . . 4 . . 7 . . . Garrison Access Hacks 3 | . . . . . . . . 1 . 2 . . . Unlock Access 1 | . . . . . . . . 1 . . . . . Seal Access 2 | . . . . . . . . . . 2 . . . Unauthorized Hacks 3 | . 1 . 1 . . . . . . 1 . . . Terminals . | . . . . . . . . . . . . . . Fabricators . | . . . . . . . . . . . . . . Repair Stations . | . . . . . . . . . . . . . . Recycling Units 3 | . 1 . 1 . . . . . . 1 . . . Monitor 3 | . 1 . 1 . . . . . . 1 . . . Scanalyzers . | . . . . . . . . . . . . . . Garrison Access . | . . . . . . . . . . . . . . Data Cores Recovered . | . . . . . . . . . . . . . . Used . | . . . . . . . . . . . . . . Hacking Detections 44 | . 7 . 10 . . . 5 6 . 16 . . . Full Trace Events 29 | . 6 . 7 . . . 3 4 . 9 . . . Feedback Events . | . . . . . . . . . . . . . . Feedback Blocked . | . . . . . . . . . . . . . . Robot Schematics Acquired 6 | . . . . . . . . 1 . . . 5 . Robots Built . | . . . . . . . . . . . . . . Authchips . | . . . . . . . . . . . . . . Time . | . . . . . . . . . . . . . . Total Robot Build Rating . | . . . . . . . . . . . . . . Part Schematics Acquired 25 | . . . 1 . . . 4 1 . 8 . 11 . Parts Built 4 | . . . . . . . . . . 4 . . . Authchips . | . . . . . . . . . . . . . . Time 221 | . . . . . . . . . . 221 . . . Total Part Build Rating 16 | . . . . . . . . . . 16 . . . Parts Repaired 4 | . . . 1 . . . . . . 3 . . . Time 185 | . . . 53 . . . . . . 132 . . . Parts Recycled . | . . . . . . . . . . . . . . Recycled Matter . | . . . . . . . . . . . . . . Retrieved Matter . | . . . . . . . . . . . . . . Retrieved Components 3 | . . . 3 . . . . . . . . . . Parts Scanalyzed 11 | . . . 1 . . . 4 . . 6 . . . Part Schematics Acquired 11 | . . . 1 . . . 4 . . 6 . . . Parts Damaged 3 | . . . 1 . . . . . . 2 . . . Bothacking | -11 -10 -10 -9 -9 -9 -8 -8 -7 -7 -7 -7 -7 -6 ------------ Run | Yrd Mat Min Mat Min Exi Min Mat Fac Gar Fac Low Dat Pro Used RIF Installer 1 | . . . . . . . . . 1 . . . . Robots Hacked . | . . . . . . . . . . . . . . Non-combat . | . . . . . . . . . . . . . . Combat . | . . . . . . . . . . . . . . Robot Hacks Applied . | . . . . . . . . . . . . . . Relay Couplers Released 22 | . . . . . . . . 1 21 . . . . Machine Destruction 22 | . . . . . . . . 1 21 . . . . Fabnet Peak Effective % . | . . . . . . . . . . . . . . Robots Rewired . | . . . . . . . . . . . . . . Allies Hacked . | . . . . . . . . . . . . . . Hacks Repelled . | . . . . . . . . . . . . . . Allies | -11 -10 -10 -9 -9 -9 -8 -8 -7 -7 -7 -7 -7 -6 -------- Run | Yrd Mat Min Mat Min Exi Min Mat Fac Gar Fac Low Dat Pro Total Allies 3 | . . 2 . . . . . . . . . . 1 Largest Group 2 | . . 2 . . . . . . . . . . 1 Highest-Rated Group 96 | . . 39 . . . . . . . . . . 96 Highest-Rated Ally 96 | . . 31 . . . . . . . . . . 96 Total Orders . | . . . . . . . . . . . . . . Ally Attacks 20 | . . . . . . . . . . . . . 20 Total Damage 522 | . . . . . . . . . . . . . 522 Kills 7 | . . . . . . . . . . . . . 7 Allies Corrupted . | . . . . . . . . . . . . . . Allies Melted . | . . . . . . . . . . . . . . Intel | -11 -10 -10 -9 -9 -9 -8 -8 -7 -7 -7 -7 -7 -6 ------- Run | Yrd Mat Min Mat Min Exi Min Mat Fac Gar Fac Low Dat Pro Robot Analysis Total 7 | . 3 . 1 . . . 1 1 . 1 . . . Derelict Logs Recovered 6 | . . 2 . 1 . . . . . . . . 3 Drone Launches . | . . . . . . . . . . . . . . Drone Recoveries . | . . . . . . . . . . . . . . Exploration | -11 -10 -10 -9 -9 -9 -8 -8 -7 -7 -7 -7 -7 -6 ------------- Run | Yrd Mat Min Mat Min Exi Min Mat Fac Gar Fac Low Dat Pro Turns Passed 13535 | 115 1302 337 1828 1514 258 204 1266 1585 709 3508 46 380 483 Spaces Moved 7804 | 54 696 327 707 1202 232 169 471 1250 517 1719 41 111 308 Core 3 | 3 . . . . . . . . . . . . . Treads 1520 | 51 562 . 87 . . . 368 . 116 336 . . . Legs 99 | . . . 99 . . . . . . . . . . Wheels 4531 | . 134 327 521 1202 232 169 103 . . 1383 41 111 308 Hover . | . . . . . . . . . . . . . . Flight 1651 | . . . . . . . . 1250 401 . . . . Fastest Speed 50 | 50 80 80 95 105 110 110 110 50 50 115 115 115 100 Average Speed 114 | 153 144 89 161 112 110 110 210 50 72 121 115 115 114 Slowest Speed 330 | 160 160 95 330 155 110 110 320 50 272 250 115 115 115 Overloaded Moves . | . . . . . . . . . . . . . . Propulsion Burnouts . | . . . . . . . . . . . . . . Robots Hopped . | . . . . . . . . . . . . . . Cave-ins Triggered . | . . . . . . . . . . . . . . Exploration Rate (%) 50 | 5 97 55 58 98 60 47 36 27 50 46 9 75 39 Regions Visited 13 Branch Regions 7 Pre-discovered Areas 3 | . . . . 1 1 . . . . . . 1 . Known Exits Taken 11 | . 1 1 1 1 1 1 1 1 . 1 1 1 . Unknown Exits Taken 1 | 1 . . . . . . . . . . . . . Scrap Searched 5 | . . 1 . 2 . . . . . . 1 . 1 Spaces Dug 42 | . . . . . . . . 8 3 30 . . 1 Terrain Destroyed 86 | . . . . 36 . . 8 8 3 30 . . 1 Melee 42 | . . . . . . . . 8 3 30 . . 1 Projectile 2 | . . . . 2 . . . . . . . . . AOE 42 | . . . . 34 . . 8 . . . . . . Terrain Rammed . | . . . . . . . . . . . . . . Walls Destroyed . | . . . . . . . . . . . . . . Machines Disabled . | . . . . . . . . . . . . . . Actions | -11 -10 -10 -9 -9 -9 -8 -8 -7 -7 -7 -7 -7 -6 --------- Run | Yrd Mat Min Mat Min Exi Min Mat Fac Gar Fac Low Dat Pro Total 11643 | 74 870 367 1182 1330 236 181 707 2180 789 2891 40 363 433 Wait 2898 | 4 83 25 254 47 . 7 152 862 160 942 . 253 109 Move 7792 | 53 695 326 706 1201 231 168 470 1250 516 1718 40 110 308 Hop . | . . . . . . . . . . . . . . Pick Up 127 | 6 10 4 37 12 1 . 12 11 8 25 . . 1 Fast Attach 57 | 6 4 . 10 6 . . 7 1 . 22 . . 1 Attach 60 | . 2 . 18 5 . . 4 3 11 13 . . 4 Detach 20 | . 1 . 5 1 . . 3 3 . 5 . . 2 Swap 34 | 1 . 3 4 6 . . 3 6 7 4 . . . Drop 123 | . 10 5 28 16 4 . 17 12 5 23 . . 3 Fire 263 | 4 65 4 120 36 . 6 28 . . . . . . Melee 248 | . . . . . . . 11 32 61 139 . . 5 Ram . | . . . . . . . . . . . . . . Kick . | . . . . . . . . . . . . . . Crush . | . . . . . . . . . . . . . . Escape Stasis 20 | . . . . . . . . . 20 . . . . Rewire 1 | . . . . . . . . . 1 . . . . Trap . | . . . . . . . . . . . . . . Miscellaneous . | . . . . . . . . . . . . . . Route ------- -11/Scrapyard -10/Materials (discovered 4 exits: *Mat x3 / *Min) -10/Mines (discovered 2 exits: *Mat x2) -9/Materials (discovered 2 exits: *Mat / *Min) -9/Mines (discovered 3 exits: *Mat x2 / *Exi) -9/Exiles -8/Mines (discovered 2 exits: *Mat x2) -8/Materials -7/Factory -7/Garrison -7/Factory (discovered 3 exits: *Fac x2 / *Low) -7/Lower Caves -7/Data Miner -6/Proximity Caves History --------- Turn | Location | Event 13 | -11/Scrapyard | Discovered new exit (range 15) 116 | -11/Scrapyard | Entered Materials 305 | -10/Materials | Build established: Mutant 403 | -10/Materials | Central database locked down 443 | -10/Materials | Discovered new exit (range 9) 720 | -10/Materials | Discovered new exit (range 15) 1024 | -10/Materials | Discovered new exit (range 15) 1054 | -10/Materials | Identified exit to Mines 1080 | -10/Materials | Identified exit to Materials 1418 | -10/Materials | Entered Mines 1437 | -10/Mines | Learned location of 1 exit from Materials 1474 | -10/Mines | Met a Derelict bent on vengeance 1511 | -10/Mines | Learned Materials emergency access door positions 1529 | -10/Mines | Joined a pair of Derelicts in attacking an 0b10 outpost 1603 | -10/Mines | Discovered exit to Materials (range 9) 1747 | -10/Mines | Discovered exit to Materials (range 9) 1755 | -10/Mines | Entered Materials 1755 | -9/Materials | Evolved 2 slots: Utility x2 1756 | -9/Materials | Identified exit to Materials 1830 | -9/Materials | Build established: Scavenger-Mutant 2409 | -9/Materials | Repaired Broken Imp. Terrain Scanner 3188 | -9/Materials | Destroyed 7 combat bots 3336 | -9/Materials | Lost 4 parts (1n1u2w) 3340 | -9/Materials | Destroyed 9 combat bots 3355 | -9/Materials | First assault squad dispatched 3417 | -9/Materials | Core integrity fell below 50% 3513 | -9/Materials | Discovered new exit (range 6) 3519 | -9/Materials | Identified exit to Mines 3583 | -9/Materials | Entered Mines 3584 | -9/Mines | Assembled infested the area 3584 | -9/Mines | Learned location of Storage (-7) 3589 | -9/Mines | Assisted by a Guerilla fighting off Assembled 3660 | -9/Mines | Core integrity fell below 20% 4036 | -9/Mines | A weapon hastily lodged in a ceiling crevice suddenly fell to the ground 4103 | -9/Mines | Discovered exit to Materials (range 13) 4129 | -9/Mines | Learned location of 1 exit from Materials 4136 | -9/Mines | Discovered exit to Materials (range 8) 5092 | -9/Mines | Deemed a non-threat by the Exiles lab entrance 5092 | -9/Mines | Discovered new exit (range 5) 5096 | -9/Mines | Identified exit to Exiles 5097 | -9/Mines | Entered Exiles 5124 | -9/Exiles | Met 8R-AWN 5144 | -9/Exiles | Met EX-HEX 5174 | -9/Exiles | Met EX-BIN 5187 | -9/Exiles | Aligned with FarCom system 5188 | -9/Exiles | Given EX-Vault access code 5216 | -9/Exiles | Opened EX-Vault 5226 | -9/Exiles | Found Flying Fortress v7 5250 | -9/Exiles | Warned to stay clear of 0b10 Research branches 5286 | -9/Exiles | Met EX-DEC 5294 | -9/Exiles | Learned location of Zion (-6) 5341 | -9/Exiles | Discovered new exit (range 14) 5353 | -9/Exiles | Identified exit to Mines 5355 | -9/Exiles | Left Exiles lab with Flying Fortress v7 5355 | -9/Exiles | Entered Mines 5503 | -8/Mines | Discovered exit to Materials (range 15) 5517 | -8/Mines | Discovered exit to Materials (range 15) 5559 | -8/Mines | Entered Materials 5559 | -8/Materials | Evolved 2 slots: Utility x2 5560 | -8/Materials | Identified exit to Factory 6066 | -8/Materials | Build established: Mutant 6475 | -8/Materials | Central database locked down 6825 | -8/Materials | Entered Factory 6825 | -7/Factory | Evolved 2 slots: Propulsion x2 7093 | -7/Factory | Identified exit to DSF 7137 | -7/Factory | Build established: Hacker-Scout 7887 | -7/Factory | Cargo convoy interrupted 8410 | -7/Factory | Identified exit to Garrison 8410 | -7/Factory | Entered Garrison 8601 | -7/Garrison | Garrison Relay disabled 8604 | -7/Garrison | Garrison Relay disabled 8608 | -7/Garrison | Garrison Relay disabled 8626 | -7/Garrison | Garrison Relay disabled 8655 | -7/Garrison | Garrison Relay disabled 8719 | -7/Garrison | Build established: Hacker-Mutant 8829 | -7/Garrison | Discovered new exit (range 9) 8833 | -7/Garrison | Identified exit to Factory 8925 | -7/Garrison | Lost 5 parts (1p3n1u) 8950 | -7/Garrison | Garrison Relay disabled 8966 | -7/Garrison | Installed Relay Interface Framework 9119 | -7/Garrison | Entered Factory 9418 | -7/Factory | Repaired Corrupted Lgt. Treads 9445 | -7/Factory | Build established: Scavenger-Assassin 9862 | -7/Factory | Lost 4 parts (1p1n2u) 9965 | -7/Factory | Lost 3 parts (2n1w) 9996 | -7/Factory | Garrison activated, responded to threat 10339 | -7/Factory | Fabricated Xenon Bombardment Thruster (x2) 10476 | -7/Factory | Discovered new exit (range 7) 10482 | -7/Factory | Identified exit to Factory 10503 | -7/Factory | Core integrity fell below 50% 10670 | -7/Factory | Garrison activated, responded to threat 10792 | -7/Factory | Build established: Mutant 11286 | -7/Factory | Repaired Broken Adv. Terrain Scan Processor 11317 | -7/Factory | Build established: Hacker-Mutant 11340 | -7/Factory | Repaired Broken Imp. Terrain Scanner 11424 | -7/Factory | Garrison activated, responded to threat 11955 | -7/Factory | Discovered exit to Factory (range 15) 11978 | -7/Factory | Core integrity fell below 20% 12480 | -7/Factory | Fabricated Adv. Terrain Scan Processor (x2) 12590 | -7/Factory | Discovered new exit (range 13) 12600 | -7/Factory | Build established: Hacker-Assassin 12626 | -7/Factory | Identified exit to Lower Caves 12627 | -7/Factory | Entered Lower Caves 12668 | -7/Lower Caves | A Derelict revealed a hidden shortcut to meet someone special 12672 | -7/Lower Caves | Identified exit to Data Miner 12673 | -7/Lower Caves | Entered Data Miner 12673 | -7/Data Miner | Discovered new exit (range 6) 12678 | -7/Data Miner | Identified exit to Proximity Caves 12695 | -7/Data Miner | Met Data Miner 12729 | -7/Data Miner | Learned location of Section 7 (-2) 12729 | -7/Data Miner | Acquired the access code to Warlord's prototype stash 12923 | -7/Data Miner | Build established: Hacker-Mutant 12967 | -7/Data Miner | Received God Mode back door access code from Data Miner 13053 | -7/Data Miner | Entered Proximity Caves 13062 | -6/Proximity Caves | Learned Factory garrison access intel 13155 | -6/Proximity Caves | Escorted by Enhanced Grunt 13164 | -6/Proximity Caves | Attracted the attention of an 0b10 checkpoint 13185 | -6/Proximity Caves | Learned Factory terminal intel 13278 | -6/Proximity Caves | Acquired the password to a Derelict Tinkerer's latest research 13289 | -6/Proximity Caves | Found Prototype Special Weapon 13289 | -6/Proximity Caves | Identified Molecular Deconstructor 13339 | -6/Proximity Caves | Learned Factory garrison access intel 13536 | -6/Proximity Caves | Destroyed by S-27 Virus with Autogun Last Messages --------------- 13422_ Aluminum Leg destroyed. 13442_ Unknown Power Core fries itself beyond repair. 13442_ Imp. Heat Sink fries itself beyond repair. 13446_ Tesla Rifle fries itself beyond repair. 13449_ Imp. Heat Sink fries itself beyond repair. 13450_ Acquired 6 matter. 13451_ Imp. Target Analyzer fries itself beyond repair. 13454_ Antigrav System fries itself beyond repair. 13464_ Arm. Treads destroyed. 13485_ Arc Projector fries itself beyond repair. 13516_ Mic. Nuclear Core destroyed. 13524_ Enhanced Grunt destroyed. 13526_ Impact Mace follow-up attack on S-27 Virus. 13531_ S-27 Virus destroyed. Map ----- +----------------------------------------------------+ | % "# ####### # | | ###### ## ###### ########### | | ???#### ### ###### ########## | | ???#??## ## #### ####### ######## | | ###? ? ??#?#### ## ##?# ######### ###### ? | | ??????? ?????### ##?########### ## ## | | ????????? ?#### ###########?## ## ##? | | ????????? #?##?# ##?# ##### ### #?? | | ?????? ????###?## ### #### ## ?#? | | ????? ??? ###?### ## ##? ? | | ??????? ? ??#???# ### ### | | ???????? ????#?###?#### ####??# ?? | | ????????#??? ######?## % #??####?#? | | ????????##?? ######?## #### ########?##? | | ??????????# ?? ?#####?#### ####### ###?###??#?? | | ?????????? ? #??##?#?############ ######?##?#?? | | ?????????? ? ##?#######?###?###### #######???# ? | | ????????????##?################ ## ### #??????? | | ????????????#???###?########## # #?#? ??? | | ????????????#??####?###?#?### ####???? | | ???????????????## ####?#### ###?#???? | | ????????????#### ###### ##?? ?? | | ?????????????## #### ##?? ? ?? | | ?????????????# ## ## ? ??? | | ?????????????# | | ???????????### @= #### | | ??????????????# =%]!### ####? ? | | ?????????????## #### s!%#### ##???# ###? | | ??????????????#??????# != ?## #####?? ##??? | | ????????????#?? ?## ### #?#? ##?#? | | ????????????##?# ? ? ### ## #???? | | ?????????????####??# = ### ### ? #?#?? | | ????????????#?##???# % ### #### ? ##??? | | ??????????????????# #; ### ###?? ? ?????? | | ?????????????????## ### #######?? ? ??#?#???? | | ?????????????????? ?#?# ???#?#??? ???#??##?? | | ???????????????? ??#? ?##?###??? ??#????? | | ???????????????? #######? ?? ##??###??????#?????? | | ???????????????????##????? ###??#???????#???#?? | | ?????????????????????##??? ?? ??#?#????? ?? ?????? | | ???????????????????????? ?? ????? ??? ??????? | | ?????????????????????????? ? ?? ????? ? ????????? | | ????????????????????????? ????? ??????? ????????? | | ?????????????????????????????????????????????????? | | ??????????????????????????????#??????????????????? | | ?????????????????????????????????????????????????? | | ?????????????????????????????????????????????????? | | ?????????????????????????????????????????????????? | | ?????????????????????????????????????????????????? | | ?????????????????????????????????????????????????? | +----------------------------------------------------+ Best States ------------- Heat Dissipation 48 Energy Generation 15 Energy Capacity 280 Matter Stores 300 Matter Capacity 300 Sight Range 16 Terrain Scan Range 16 Terrain Scan Density 210 ECM Strength 2 Armor Coverage 375 Evasion (%) 60 Targeting Accuracy 14 Recoil Reduction 3 Offensive Hacking 20 Item Schematics ----------------- Imp. Terrain Scanner | -9/Materials | Scanalyzed Hacking Suite | -8/Materials | Scanalyzed Imp. Terrain Scan Processor | -8/Materials | Scanalyzed Imp. Signal Interpreter | -8/Materials | Scanalyzed Sml. Storage Unit | -8/Materials | Scanalyzed Xenon Bombardment Thruster | -7/Factory | Hacked Adv. Terrain Scan Processor | -7/Factory | Scanalyzed Imp. Proton Missile Launcher | -7/Factory | Hacked Adv. Signal Interpreter | -7/Factory | Hacked Cld. VTOL Module | -7/Factory | Scanalyzed Impact Mace | -7/Factory | Scanalyzed Adv. ECM Suite | -7/Factory | Scanalyzed Imp. Datajack | -7/Factory | Scanalyzed Arm. Huge Wheel | -7/Factory | Scanalyzed Combat Drone Bay | -7/Data Miner | Free Lgt. Regenerative Plating | -7/Data Miner | Free Cld. Cesium-ion Thruster | -7/Data Miner | Free Thermal Defense Suite | -7/Data Miner | Free Scatter Rocket Array | -7/Data Miner | Free Linear Gravjet | -7/Data Miner | Free Imp. Corruption Screen | -7/Data Miner | Free Hvy. Shock Bomb Launcher | -7/Data Miner | Free Drone Bay | -7/Data Miner | Free Imp. Remote Datajack | -7/Data Miner | Free Railgun | -7/Data Miner | Free Robot Schematics ------------------ X-62 Marksman | -7/Factory | Hacked M-28 Smith | -7/Data Miner | Free Y-54 Guardian | -7/Data Miner | Free M-14 Sweeper | -7/Data Miner | Free G-50 Soldier | -7/Data Miner | Free Y-64 Sentinel | -7/Data Miner | Free Fabricated ------------ Xenon Bombardment Thruster | x2 | -7/Factory Adv. Terrain Scan Processor | x2 | -7/Factory Alien Tech Used ----------------- None Achievements -------------- The Oracle Challenges ------------ None Game ------ Seed VariableLightpackPit Manual? 0 Play Time 02:17:39 Cumulative 37.4 hours Start 2024.04.10 @ 16:33:25 End 2024.04.11 @ 00:15:37 Sessions 3 Manual Loads 0 Difficulty Rogue Special Mode None Game No. 25 Rogue 25 Adventurer 0 Explorer 0 Win Type - Total 0 Types 0/0/0/0/0/0/0/0/0 Lore% 31 Gallery% 38 Achievement% 30 Wizard Run 0 Options --------- Layout 2 ASCII 0 Keyboard 1 Movement Numpad Keybinds 0 Fullscreen 1 Font 24/Smallcaps Map View 50x44 Zoom Use 0% Tactical HUD 1 Map Filters NONE Filters NONE Steam 1 RUN: 2865b177-98e6-4a90-af3e-dc9244d2b893